bitfinex/quotes_SOLUSD_20220307
["timestamp","ask_amount","ask_price","bid_price","bid_amount"]
[1646624349549,6.064,82.474,82.43,18.1954]
[1646624350849,6.064,82.474,82.422,51.26529227]
[1646624352953,128.164,82.475,82.422,51.26529227]
[1646624353851,122.1,82.475,82.422,51.26529227]
[1646624354652,6.064,82.474,82.422,51.26529227]
[1646624355952,6.064,82.474,82.423,24.3814]
[1646624356952,122.1,82.475,82.423,24.3814]
[1646624357353,122.1,82.475,82.43,18.1954]
[1646624358854,123.73299391,82.475,82.43,18.1954]
[1646624359054,122.1,82.475,82.43,18.1954]
[1646624359854,123.73299391,82.475,82.43,18.1954]
[1646624360055,122.1,82.475,82.43,18.1954]
[1646624360256,6.064,82.474,82.43,18.1954]
[1646624361978,6.064,82.475,82.43,18.1954]
[1646624362378,24.9664,82.476,82.43,18.1954]
[1646624363680,24.9664,82.476,82.431,6.064]
[1646624364282,24.9664,82.476,82.44,18.1931]
[1646624364481,24.9664,82.476,82.441,58.16460789]
[1646624371890,24.9664,82.476,82.44,18.1931]
[1646624372191,26.59939391,82.476,82.44,18.1931]
[1646624372790,26.59939391,82.476,82.433,23.1381]
[1646624372991,1.63299391,82.468,82.4,14.68]
[1646624373191,1.63299391,82.461,82.409,24.2895]
[1646624373392,1.63299391,82.46,82.409,24.2895]
[1646624373691,122.1,82.458,82.409,24.2895]
[1646624373893,122.1,82.456,82.409,24.2895]
[1646624374092,184.14871513,82.456,82.409,24.2895]
[1646624376092,184.14871513,82.456,82.41,6.065]
[1646624376296,1.63299391,82.458,82.41,18.2]
[1646624376497,1.63299391,82.46,82.41,18.2]
[1646624376691,1.63299391,82.461,82.41,18.2]
[1646624377095,6.065,82.46,82.41,18.2]
[1646624377792,28.8134,82.46,82.41,18.2]
[1646624378192,30.44639391,82.46,82.41,18.2]
[1646624378393,28.8134,82.46,82.41,18.2]
[1646624378595,122.1,82.459,82.41,18.2]
[1646624378794,6.065,82.458,82.409,24.2895]
[1646624378995,1.63299391,82.448,82.409,24.2895]
[1646624379194,6.065,82.447,82.409,24.2895]
[1646624380395,6.065,82.448,82.409,24.2895]
[1646624380595,129.79799391,82.448,82.409,24.2895]
[1646624381095,128.165,82.448,82.409,24.2895]
[1646624381793,6.065,82.448,82.409,24.2895]
[1646624381994,6.065,82.45,82.409,24.2895]
[1646624382793,1.63299391,82.449,82.409,24.2895]
[1646624382993,6.065,82.448,82.409,24.2895]
[1646624383197,6.065,82.449,82.399,47.09019183]
[1646624383394,122.1,82.447,82.392,23.8025]
[1646624383794,6.066,82.446,82.392,23.8025]
[1646624386300,146.1542,82.448,82.392,23.8025]
[1646624386901,24.0542,82.448,82.392,23.8025]
[1646624387099,146.1542,82.448,82.392,23.8025]
[1646624387906,24.0542,82.448,82.392,23.8025]
[1646624388099,24.0542,82.448,82.4,18.2018]
[1646624388502,31.0634,82.463,82.4,18.2018]
[1646624388503,24.9974,82.463,82.4,18.2018]
[1646624388703,24.26521476,82.481,82.4,18.2018]
[1646624388704,1.63299391,82.473,82.4,32.8818]
[1646624388903,1.63299391,82.473,82.401,0.50741959]
[1646624389105,4.35550732,82.532,82.401,0.50741959]
[1646624389106,1.63299391,82.487,82.42,18.1887]
[1646624389405,1.63299391,82.49,82.421,6.064]
[1646624389602,1.63299391,82.49,82.422,71.23748612]
[1646624389803,1.63299391,82.492,82.423,6.063]
[1646624390403,1.63299391,82.493,82.423,6.063]
[1646624390703,29.3451,82.504,82.44,18.1906]
[1646624390704,1.63299391,82.503,82.44,18.1906]
[1646624390902,1.63299391,82.503,82.45,14.68]
[1646624391103,1.63299391,82.505,82.451,30.244]
[1646624391304,1.63299391,82.506,82.503,0.036803]
[1646624391503,1.49362556,82.505,82.503,0.036803]
[1646624392602,1.63299391,82.509,82.503,0.036803]
[1646624393007,1.63299391,82.513,82.503,0.036803]
[1646624393203,1.63299391,82.515,82.503,0.036803]
[1646624393403,1.63299391,82.518,82.503,0.036803]
[1646624393604,1.63299391,82.519,82.503,0.036803]
[1646624393805,1.63299391,82.52,82.503,0.036803]
[1646624394003,1.63299391,82.523,82.503,0.036803]
[1646624394204,1.63299391,82.53,82.503,0.036803]
[1646624394408,1.63299391,82.536,82.503,0.036803]
[1646624394604,1.63299391,82.538,82.503,0.036803]
[1646624395005,46.13059204,82.537,82.503,0.036803]
[1646624396406,46.13059204,82.537,82.503,0.01531434]
[1646624398812,6.059,82.536,82.503,0.01531434]
[1646624400211,46.13059204,82.537,82.503,0.01531434]
[1646624401313,122.1,82.536,82.503,0.01531434]
[1646624401516,6.059,82.535,82.503,0.01531434]
[1646624404624,46.13059204,82.537,82.503,0.01531434]
[1646624405421,6.059,82.556,82.503,0.01531434]
[1646624405623,1.63299391,82.568,82.51,18.1764]
[1646624405824,6.057,82.567,82.51,18.1764]
[1646624406024,6.057,82.568,82.51,18.1764]
[1646624406222,6.057,82.568,82.51,32.8564]
[1646624406424,51.55937413,82.574,82.511,59.12936095]
[1646624406622,51.55937413,82.574,82.52,18.173]
[1646624408522,6.057,82.573,82.52,18.173]
[1646624408923,51.55937413,82.574,82.52,18.173]
[1646624411343,48.2333,82.586,82.52,32.853]
[1646624411544,1.63299391,82.602,82.52,32.853]
[1646624411743,6.056,82.601,82.521,23.8593]
[1646624411944,6.056,82.601,82.54,18.1673]
[1646624412145,6.055,82.607,82.54,32.8473]
[1646624412347,6.055,82.607,82.541,52.38476828]
[1646624412545,1.63299391,82.617,82.541,52.38476828]
[1646624412546,24.8901,82.618,82.541,52.38476828]
[1646624412745,24.8901,82.618,82.542,23.8593]
[1646624413147,6.054,82.617,82.542,23.8593]
[1646624413344,50.135144,82.616,82.542,23.8593]
[1646624413643,128.154,82.615,82.542,23.8593]
[1646624414247,2.83613526,82.614,82.542,23.8593]
[1646624414445,128.154,82.613,82.52,14.68]
[1646624414645,73.33,82.606,82.52,14.68]
[1646624414848,5.86441138,82.598,82.5,14.68]
[1646624415047,6.056,82.597,82.5,14.68]
[1646624415248,122.1,82.596,82.501,62.11983021]
[1646624415449,6.056,82.595,82.501,62.11983021]
[1646624415648,122.1,82.594,82.501,62.11983021]
[1646624415947,6.057,82.593,82.501,62.11983021]
[1646624416348,2.83613526,82.592,82.501,62.11983021]
[1646624416546,168.13370219,82.59,82.501,62.11983021]
[1646624416747,6.057,82.589,82.501,62.11983021]
[1646624416951,1.63299391,82.584,82.501,62.11983021]
[1646624417148,6.057,82.583,82.501,62.11983021]
[1646624417450,1.63299391,82.581,82.501,62.11983021]
[1646624417647,6.057,82.58,82.501,62.11983021]
[1646624418047,7.68999391,82.581,82.501,62.11983021]
[1646624418250,6.057,82.581,82.51,18.1767]
[1646624418447,6.057,82.587,82.511,24.5136]
[1646624418649,6.057,82.588,82.511,24.5136]
[1646624419051,6.056,82.589,82.511,24.5136]
[1646624419453,6.056,82.589,82.53,18.1705]
[1646624419655,6.056,82.589,82.531,56.48775195]
[1646624420057,128.156,82.589,82.531,56.48775195]
[1646624420454,2.83613526,82.588,82.531,56.48775195]
[1646624420654,6.056,82.587,82.531,56.48775195]
[1646624421255,6.056,82.587,82.521,24.5136]
[1646624421456,123.73299391,82.586,82.521,24.5136]
[1646624421655,1.63299391,82.581,82.521,24.5136]
[1646624421857,1.63299391,82.581,82.495,22.519]
[1646624421858,113.4,82.579,82.455,5.23244854]
[1646624422058,113.4,82.579,82.473,24.1167]
[1646624422059,1.63299391,82.566,82.473,24.1167]
[1646624422259,1.63299391,82.551,82.473,24.1167]
[1646624422456,123.73299391,82.548,82.473,24.1167]
[1646624422660,1.63299391,82.545,82.473,24.1167]
[1646624422857,122.1,82.543,82.473,24.1167]
[1646624423055,6.058,82.542,82.473,24.1167]
[1646624423458,122.1,82.54,82.473,24.1167]
[1646624423657,6.059,82.539,82.473,24.1167]
[1646624424459,6.0354259,82.539,82.473,24.1167]
[1646624425263,128.1354259,82.539,82.473,24.1167]
[1646624425458,122.1,82.539,82.473,24.1167]
[1646624425659,6.059,82.538,82.473,24.1167]
[1646624426460,6.059,82.541,82.473,24.1167]
[1646624428164,122.1,82.54,82.473,24.1167]
[1646624428362,6.059,82.539,82.473,24.1167]
[1646624429266,6.059,82.54,82.473,24.1167]
[1646624429464,6.059,82.54,82.48,18.1839]
[1646624429864,122.1,82.543,82.48,18.1839]
[1646624430064,6.059,82.542,82.48,18.1839]
[1646624430666,6.059,82.542,82.473,24.1167]
[1646624430864,129.79199391,82.542,82.473,24.1167]
[1646624431167,1.63299391,82.54,82.45,14.68]
[1646624431468,1.63299391,82.529,82.455,12.6637207]
[1646624431667,4.78265092,82.527,82.42,14.68]
[1646624431865,122.1,82.514,82.421,58.94176436]
[1646624432075,122.1,82.512,82.435,12.66687865]
[1646624432267,6.062,82.511,82.421,58.94176436]
[1646624432670,6.062,82.511,82.428,12.66838048]
[1646624432872,2.83613526,82.51,82.43,18.1947]
[1646624433074,6.062,82.509,82.43,18.1947]
[1646624433469,2.83613526,82.51,82.43,18.1947]
[1646624433673,2.83613526,82.51,82.431,23.123]
[1646624433870,122.1,82.512,82.45,18.1891]
[1646624434170,6.062,82.511,82.451,50.96093406]
[1646624434372,6.062,82.512,82.451,50.96093406]
[1646624434772,128.162,82.512,82.451,50.96093406]
[1646624436174,128.162,82.512,82.431,23.123]
[1646624436373,2.83613526,82.511,82.431,23.123]
[1646624436573,6.062,82.51,82.431,23.123]
[1646624436993,2.83613526,82.509,82.431,23.123]
[1646624437194,6.062,82.508,82.432,54.53472318]
[1646624438694,6.062,82.508,82.431,23.123]
[1646624438895,2.83613526,82.507,82.41,14.68]
[1646624439095,6.063,82.506,82.4,32.9197]
[1646624439393,1.63299391,82.505,82.403,12.67024796]
[1646624439594,1.63299391,82.502,82.414,64.62230024]
[1646624439795,6.063,82.501,82.414,64.62230024]
[1646624440095,2.83613526,82.501,82.414,64.62230024]
[1646624440295,6.063,82.5,82.414,64.62230024]
[1646624440498,122.1,82.499,82.414,64.62230024]
[1646624440695,6.063,82.498,82.414,64.62230024]
[1646624441099,6.063,82.498,82.415,22.7523]
[1646624441295,6.063,82.498,82.42,14.68]
[1646624441498,6.063,82.498,82.42,32.8759]
[1646624441696,6.063,82.498,82.42,14.68]
[1646624444903,122.1,82.495,82.403,12.67024796]
[1646624445104,73.33,82.478,82.383,24.975]
[1646624445305,195.43,82.469,82.383,24.975]
[1646624445507,122.1,82.467,82.383,24.975]
[1646624445807,6.066,82.466,82.383,24.975]
[1646624446005,58.78991034,82.465,82.39,18.2039]
[1646624446204,6.065,82.464,82.39,18.2039]
[1646624446405,58.78991034,82.465,82.39,32.8839]
[1646624448613,6.065,82.464,82.39,32.8839]
[1646624450217,58.78991034,82.465,82.39,32.8839]
[1646624450823,136.78,82.52,82.39,32.8839]
[1646624451018,1.63299391,82.514,82.42,18.1889]
[1646624451317,1.63299391,82.518,82.43,14.68]
[1646624451514,6.062,82.517,82.44,14.68]
[1646624451714,6.062,82.517,82.45,14.68]
[1646624451914,60.40428091,82.516,82.451,58.52677017]
[1646624452116,128.161,82.515,82.452,23.034]
[1646624452416,6.061,82.515,82.452,23.034]
[1646624452615,6.061,82.515,82.46,18.189]
[1646624454418,6.061,82.515,82.46,32.869]
[1646624454619,60.40428091,82.516,82.46,32.869]
[1646624455418,122.1,82.515,82.46,14.68]
[1646624456121,6.061,82.514,82.46,14.68]
[1646624461334,7.69399391,82.514,82.46,14.68]
[1646624461534,123.73299391,82.513,82.46,14.68]
[1646624461732,6.061,82.512,82.46,14.68]
[1646624462136,7.69399391,82.513,82.46,65.45434931]
[1646624462334,6.061,82.513,82.46,65.45434931]
[1646624462533,6.061,82.514,82.46,65.45434931]
[1646624462734,122.1,82.513,82.46,65.45434931]
[1646624462937,6.061,82.512,82.46,14.68]
[1646624463751,128.161,82.512,82.46,14.68]
[1646624464653,128.161,82.512,82.452,23.034]
[1646624464853,6.061,82.512,82.452,23.034]
[1646624465053,122.1,82.512,82.452,23.034]
[1646624465453,6.061,82.511,82.452,23.034]
[1646624465653,122.1,82.51,82.452,23.034]
[1646624465853,6.062,82.509,82.44,14.68]
[1646624466057,122.1,82.508,82.44,14.68]
[1646624466256,122.1,82.506,82.44,14.68]
[1646624466456,6.062,82.505,82.44,14.68]
[1646624467256,1.63299391,82.504,82.441,24.892]
[1646624467456,1.63299391,82.508,82.441,24.892]
[1646624467755,1.63299391,82.511,82.441,24.892]
[1646624468155,1.63299391,82.51,82.441,24.892]
[1646624468556,1.63299391,82.511,82.441,24.892]
[1646624468769,122.1,82.514,82.421,42.3493]
[1646624468770,1.63299391,82.505,82.421,24.5913]
[1646624468963,1.63299391,82.501,82.421,24.5913]
[1646624469161,1.63299391,82.497,82.421,24.5913]
[1646624469360,4.91930795,82.494,82.421,24.5913]
[1646624469560,6.063,82.493,82.421,76.69227439]
[1646624469761,122.1,82.492,82.421,76.69227439]
[1646624469962,1.63299391,82.486,82.421,76.69227439]
[1646624470163,6.064,82.485,82.421,76.69227439]
[1646624470563,122.1,82.484,82.421,76.69227439]
[1646624470763,6.064,82.483,82.421,76.69227439]
[1646624470966,6.064,82.485,82.421,76.69227439]
[1646624471167,24.4097,82.488,82.421,76.69227439]
[1646624471567,24.4097,82.488,82.422,24.7229]
[1646624471767,122.1,82.487,82.422,24.7229]
[1646624471964,6.063,82.486,82.43,18.1956]
[1646624472467,6.063,82.487,82.43,18.1956]
[1646624472867,54.27237948,82.49,82.43,18.1956]
[1646624473065,176.37237948,82.49,82.43,32.8756]
[1646624473877,6.063,82.489,82.43,32.8756]
[1646624474266,176.37237948,82.49,82.43,32.8756]
[1646624475567,6.063,82.489,82.43,14.68]
[1646624475770,6.063,82.489,82.422,24.7229]
[1646624475967,122.1,82.488,82.422,24.7229]
[1646624476170,6.063,82.487,82.422,24.7229]
[1646624476969,4.46912917,82.486,82.421,24.5913]
[1646624477171,1.63299391,82.481,82.421,24.5913]
[1646624477371,123.73299391,82.478,82.357,18.0118]
[1646624477572,122.1,82.468,82.392,24.1063]
[1646624477771,122.1,82.461,82.392,24.1063]
[1646624477971,6.066,82.46,82.392,24.1063]
[1646624478371,122.1,82.459,82.392,24.1063]
[1646624478571,6.066,82.458,82.392,24.1063]
[1646624478972,122.1,82.457,82.392,24.1063]
[1646624479176,6.066,82.456,82.392,24.1063]
[1646624479372,6.066,82.456,82.388,23.3692]
[1646624479576,122.1,82.455,82.384,55.32502551]
[1646624479773,6.066,82.454,82.384,55.32502551]
[1646624480773,6.066,82.46,82.385,23.9863]
[1646624481174,122.1,82.459,82.385,23.9863]
[1646624481373,6.066,82.458,82.385,23.9863]
[1646624482274,122.1,82.458,82.385,23.9863]
[1646624482474,6.066,82.457,82.385,23.9863]
[1646624483483,6.066,82.46,82.385,23.9863]
[1646624484387,6.066,82.46,82.39,18.2039]
[1646624484982,56.72931886,82.462,82.39,32.8839]
[1646624485782,6.066,82.461,82.39,32.8839]
[1646624489283,128.166,82.461,82.39,32.8839]
[1646624489503,122.1,82.461,82.39,32.8839]
[1646624490605,56.72931886,82.462,82.391,6.066]
[1646624493309,6.066,82.461,82.39,32.8839]
[1646624495916,128.166,82.461,82.39,32.8839]
[1646624496421,56.72931886,82.462,82.391,6.066]
[1646624496617,122.1,82.461,82.391,6.066]
[1646624497219,6.066,82.46,82.391,6.066]
[1646624498818,6.066,82.461,82.391,6.066]
[1646624500519,56.72931886,82.462,82.391,6.066]
[1646624503121,122.1,82.461,82.391,6.066]
[1646624504523,22.7582,82.461,82.4,18.1962]
[1646624504725,22.7582,82.461,82.41,14.68]
[1646624504925,22.7582,82.461,82.411,45.49667526]
[1646624508130,22.7582,82.461,82.41,14.68]
[1646624509147,22.7582,82.461,82.411,46.37871534]
[1646624509348,22.7582,82.461,82.41,14.68]
[1646624511049,144.8582,82.461,82.41,14.68]
[1646624511248,144.8582,82.461,82.401,23.1573]
[1646624512453,6.065,82.46,82.401,23.1573]
[1646624512654,122.1,82.459,82.401,23.1573]
[1646624512852,6.065,82.458,82.401,23.1573]
[1646624513453,7.69799391,82.458,82.401,23.1573]
[1646624513854,122.1,82.457,82.386,24.5592]
[1646624514055,1.63299391,82.446,82.386,24.5592]
[1646624514254,1.63299391,82.436,82.386,24.5592]
[1646624514455,1.63299391,82.433,82.386,24.5592]
[1646624514654,6.067,82.435,82.386,24.5592]
[1646624514655,6.067,82.432,82.386,24.5592]
[1646624514855,177.14010134,82.431,82.386,24.5592]
[1646624515056,6.067,82.43,82.361,6.067]
[1646624515259,122.1,82.429,82.362,24.5592]
[1646624515456,6.067,82.428,82.362,24.5592]
[1646624515856,6.067,82.428,82.363,6.067]
[1646624516058,6.067,82.428,82.364,50.15841934]
[1646624516462,124.93613526,82.427,82.362,24.5592]
[1646624516758,6.067,82.426,82.362,24.5592]
[1646624517459,2.83613526,82.425,82.362,24.5592]
[1646624517659,6.067,82.424,82.362,24.5592]
[1646624518458,6.067,82.425,82.362,24.5592]
[1646624518659,128.167,82.425,82.362,24.5592]
[1646624519760,6.067,82.425,82.362,24.5592]
[1646624519960,6.067,82.428,82.362,24.5592]
[1646624520161,2.83613526,82.424,82.362,24.5592]
[1646624520363,6.067,82.423,82.362,24.5592]
[1646624520865,6.067,82.423,82.362,76.4181895]
[1646624521062,6.067,82.428,82.362,76.4181895]
[1646624521662,122.1,82.429,82.362,76.4181895]
[1646624522666,6.067,82.428,82.362,76.4181895]
[1646624524666,122.1,82.429,82.362,76.4181895]
[1646624525066,24.6126,82.43,82.362,76.4181895]
[1646624525468,30.6796,82.43,82.362,76.4181895]
[1646624527869,30.6796,82.43,82.37,18.2075]
[1646624528670,24.6126,82.43,82.37,18.2075]
[1646624529871,6.067,82.429,82.37,18.2075]
[1646624530371,24.6126,82.43,82.37,18.2075]
[1646624534672,55.04010134,82.431,82.37,18.2075]
[1646624535072,55.04010134,82.431,82.37,32.8875]
[1646624536573,1.63299391,82.443,82.37,32.8875]
[1646624536775,1.63299391,82.444,82.37,32.8875]
[1646624536974,6.067,82.448,82.371,0.53812823]
[1646624537175,22.6946,82.449,82.39,18.2003]
[1646624537474,22.6946,82.449,82.391,24.4671]
[1646624537675,52.29118855,82.457,82.392,55.52688721]
[1646624537974,6.066,82.456,82.392,55.52688721]
[1646624538178,52.29118855,82.457,82.392,55.52688721]
[1646624539277,1.63299391,82.471,82.4,18.2004]
[1646624539478,1.63299391,82.471,82.41,14.68]
[1646624539779,1.63299391,82.475,82.411,23.0596]
[1646624540179,1.63299391,82.476,82.411,23.0596]
[1646624540380,48.83515431,82.475,82.411,23.0596]
[1646624541081,48.83515431,82.475,82.42,18.1961]
[1646624541282,48.83515431,82.475,82.422,63.13859407]
[1646624542182,122.1,82.501,82.422,63.13859407]
[1646624542183,1.63299391,82.479,82.43,18.1936]
[1646624542380,32.8736,82.54,82.431,23.4966]
[1646624542381,1.63299391,82.492,82.431,23.4966]
[1646624542580,24.7186,82.501,82.431,23.4966]
[1646624542581,1.63299391,82.497,82.431,23.4966]
[1646624543081,49.27817075,82.496,82.431,23.4966]
[1646624543383,1.63299391,82.498,82.431,23.4966]
[1646624543580,21.62757145,82.537,82.431,23.4966]
[1646624543581,1.63299391,82.499,82.431,23.4966]
[1646624544183,1.63299391,82.501,82.44,18.1908]
[1646624544386,46.9924103,82.498,82.441,23.4966]
[1646624544984,6.062,82.497,82.441,23.4966]
[1646624545785,46.9924103,82.498,82.441,23.4966]
[1646624546184,6.062,82.497,82.441,23.4966]
[1646624547087,46.9924103,82.498,82.441,23.4966]
[1646624547286,6.062,82.497,82.441,23.4966]
[1646624547886,6.062,82.497,82.44,14.68]
[1646624548288,128.162,82.497,82.44,14.68]
[1646624548488,6.062,82.497,82.44,14.68]
[1646624548887,46.9924103,82.498,82.44,14.68]
[1646624550289,122.1,82.497,82.44,14.68]
[1646624550490,6.062,82.496,82.423,23.2717]
[1646624550789,1.63299391,82.488,82.39,14.68]
[1646624550994,1.63299391,82.483,82.393,24.511]
[1646624551189,4.24573234,82.486,82.393,24.511]
[1646624551190,122.1,82.481,82.393,24.511]
[1646624551393,6.064,82.48,82.393,24.511]
[1646624551990,122.1,82.479,82.393,24.511]
[1646624552190,6.065,82.478,82.393,24.511]
[1646624553193,6.065,82.478,82.4,14.68]
[1646624553394,122.1,82.481,82.4,32.88]
[1646624554595,1.63299391,82.48,82.4,32.88]
[1646624555297,123.73299391,82.481,82.4,32.88]
[1646624555495,1.63299391,82.48,82.4,32.88]
[1646624555696,1.63299391,82.479,82.4,14.68]
[1646624556099,6.065,82.478,82.4,14.68]
[1646624556497,122.1,82.481,82.4,14.68]
[1646624558120,122.1,82.481,82.4,32.8791]
[1646624559622,152.0779,82.482,82.4,32.8791]
[1646624560022,146.0139,82.482,82.4,32.8791]
[1646624560624,147.64689391,82.482,82.4,32.8791]
[1646624561424,1.63299391,82.481,82.4,32.8791]
[1646624561829,1.63299391,82.479,82.4,32.8791]
[1646624562028,6.065,82.478,82.4,32.8791]
[1646624562225,1.63299391,82.476,82.4,32.8791]
[1646624562425,6.065,82.475,82.4,32.8791]
[1646624562625,7.69799391,82.475,82.41,18.1968]
[1646624562825,6.065,82.475,82.41,18.1968]
[1646624563225,6.064,82.476,82.41,18.1968]
[1646624563424,6.064,82.476,82.411,23.3379]
[1646624564524,1.63299391,82.474,82.411,23.3379]
[1646624564725,122.1,82.472,82.411,23.3379]
[1646624565126,6.064,82.471,82.411,23.3379]
[1646624565528,144.7253,82.472,82.411,23.3379]
[1646624565729,6.064,82.471,82.411,23.3379]
[1646624565929,1.63299391,82.464,82.411,23.3379]
[1646624566128,1.63299391,82.462,82.411,23.3379]
[1646624566332,1.63299391,82.462,82.39,40.14091289]
[1646624566333,1.63299391,82.461,82.39,40.14091289]
[1646624566529,1.63299391,82.458,82.38,27.35140086]
[1646624566732,122.1,82.456,82.381,22.7028]
[1646624566930,1.63299391,82.444,82.381,22.7028]
[1646624567129,1.63299391,82.442,82.381,22.7028]
[1646624567328,6.067,82.441,82.381,22.7028]
[1646624567529,1.63299391,82.439,82.381,22.7028]
[1646624567728,122.1,82.436,82.381,22.7028]
[1646624567929,6.067,82.435,82.381,22.7028]
[1646624569829,122.1,82.434,82.366,24.2203]
[1646624570030,122.1,82.432,82.366,24.2203]
[1646624570429,6.067,82.431,82.366,24.2203]
[1646624571230,6.067,82.431,82.362,22.9556]
[1646624571434,8.90313526,82.431,82.362,22.9556]
[1646624571632,122.1,82.43,82.362,22.4556]
[1646624571831,6.067,82.429,82.362,22.4556]
[1646624572629,128.167,82.429,82.362,22.4556]
[1646624573931,6.067,82.429,82.362,22.4556]
[1646624574136,6.067,82.431,82.362,22.4556]
[1646624575135,122.1,82.432,82.362,22.4556]
[1646624576435,23.7616,82.433,82.362,22.4556]
[1646624577138,23.7616,82.433,82.37,18.2078]
[1646624577338,23.7616,82.433,82.37,32.8878]
[1646624578539,23.7616,82.433,82.37,50.8619]
[1646624580541,6.067,82.432,82.37,50.8619]
[1646624581244,23.7616,82.433,82.37,50.8619]
[1646624585449,6.067,82.436,82.37,50.8619]
[1646624585853,128.167,82.436,82.37,50.8619]
[1646624587660,122.1,82.434,82.37,50.8619]
[1646624587858,6.067,82.433,82.37,50.8619]
[1646624590463,6.067,82.433,82.37,32.8878]
[1646624591877,6.067,82.434,82.37,32.8878]
[1646624592080,6.067,82.436,82.37,32.8878]
[1646624592280,52.87347741,82.437,82.37,32.8878]
[1646624594087,52.87347741,82.437,82.37,58.62140955]
[1646624596286,51.87347741,82.437,82.37,58.62140955]
[1646624597687,6.067,82.46,82.37,58.62140955]
[1646624597887,6.067,82.46,82.371,38.83623267]
[1646624598088,1.64560702,82.451,82.39,18.1964]
[1646624598291,1.64560702,82.459,82.4,14.68]
[1646624598490,1.64560702,82.461,82.4,14.68]
[1646624598687,122.1,82.496,82.4,14.68]
[1646624598688,1.64560702,82.462,82.4,14.68]
[1646624598890,54.20332597,82.46,82.401,46.45528121]
[1646624599289,1.64560702,82.459,82.401,46.45528121]
[1646624599490,54.20332597,82.46,82.401,46.45528121]
[1646624599687,1.64560702,82.458,82.401,46.45528121]
[1646624599892,1.64560702,82.458,82.41,18.1966]
[1646624600091,52.55771895,82.46,82.41,18.1966]
[1646624602691,52.55771895,82.46,82.401,46.45528121]
[1646624602891,52.55771895,82.46,82.4,32.8153]
[1646624603191,54.20332597,82.46,82.4,14.68]
[1646624603392,1.64560702,82.459,82.4,14.68]
[1646624603891,1.64560702,82.453,82.4,14.68]
[1646624604090,1.64560702,82.445,82.381,52.61127535]
[1646624604291,1.64560702,82.442,82.381,52.61127535]
[1646624604490,1.64560702,82.441,82.381,52.61127535]
[1646624604691,1.64560702,82.443,82.381,52.61127535]
[1646624604893,1.64560702,82.44,82.38,14.68]
[1646624605292,1.64560702,82.438,82.38,14.68]
[1646624605494,1.64560702,82.439,82.38,14.68]
[1646624606792,1.64560702,82.438,82.38,14.68]
[1646624607493,6.067,82.437,82.38,14.68]
[1646624607696,7.71260702,82.437,82.38,14.68]
[1646624608296,1.64560702,82.437,82.38,32.8847]
[1646624608694,1.64560702,82.438,82.38,32.8847]
[1646624608893,6.067,82.437,82.38,32.8847]
[1646624609294,6.067,82.437,82.381,56.50902276]
[1646624609697,6.067,82.437,82.39,18.2017]
[1646624609896,62.67970681,82.444,82.39,18.2017]
[1646624610096,62.67970681,82.444,82.39,32.8817]
[1646624610496,1.64560702,82.454,82.391,48.05963106]
[1646624610797,1.64560702,82.465,82.391,36.12590228]
[1646624610996,1.64560702,82.465,82.4,18.1947]
[1646624611197,6.065,82.487,82.4,18.1947]
[1646624611198,1.64560702,82.471,82.41,14.68]
[1646624611398,1.64560702,82.469,82.411,59.23326929]
[1646624611596,51.92127227,82.47,82.411,90.82852043]
[1646624611797,51.92127227,82.47,82.412,25.64694289]